[Event "Titled Tuesday Blitz June 6 Early 2023"]
[White "Mejia, Cherry Ann"]
[Black "Samaganova, Aleksandra"]
[WhiteFideId "5206880"]
[BlackFideId "13800221"]
[WhiteElo "2007"]
[BlackElo "1858"]
[Result "1/2-1/2"]
[Round "8"]
[TimeControl "180+2"]
[Date "2023.06.06"]
[WhiteClock "0:00:07"]
[BlackClock "0:00:04"]
[Board "144"]

1. e4 {[%clk 0:02:52]}  c5 {[%clk 0:02:59]} 2. Nc3 {[%clk 0:02:50]}  e6 {[%clk 0:02:59]} 3. g3 {[%clk 0:02:49]}  Nc6 {[%clk 0:02:56]} 4. Bg2 {[%clk 0:02:46]}  g6 {[%clk 0:02:56]} 5. d3 {[%clk 0:02:46]}  Bg7 {[%clk 0:02:56]} 6. Be3 {[%clk 0:02:46]}  Nd4 {[%clk 0:02:56]} 7. Qd2 {[%clk 0:02:46]}  d6 {[%clk 0:02:55]} 8. Nd1 {[%clk 0:02:44]}  e5 {[%clk 0:02:49]} 9. c3 {[%clk 0:02:43]}  Nc6 {[%clk 0:02:47]} 10. Ne2 {[%clk 0:02:43]}  Nge7 {[%clk 0:02:46]} 11. Bh6 {[%clk 0:02:42]}  O-O {[%clk 0:02:46]} 12. h4 {[%clk 0:02:42]}  f6 {[%clk 0:02:23]} 13. Bxg7 {[%clk 0:02:40]}  Kxg7 {[%clk 0:02:23]} 14. h5 {[%clk 0:02:40]}  g5 {[%clk 0:02:24]} 15. f4 {[%clk 0:02:39]}  exf4 {[%clk 0:02:07]} 16. gxf4 {[%clk 0:02:39]}  h6 {[%clk 0:02:08]} 17. d4 {[%clk 0:02:32]}  cxd4 {[%clk 0:01:42]} 18. Nxd4 {[%clk 0:02:29]}  Re8 {[%clk 0:01:25]} 19. Nf2 {[%clk 0:02:03]}  Nxd4 {[%clk 0:00:41]} 20. Qxd4 {[%clk 0:01:59]}  Nf5 {[%clk 0:00:38]} 21. Qd3 {[%clk 0:01:50]}  Qb6 {[%clk 0:00:33]} 22. O-O {[%clk 0:01:02]}  Ne3 {[%clk 0:00:25]} 23. Rfe1 {[%clk 0:00:57]}  Ng4 {[%clk 0:00:19]} 24. Qd4 {[%clk 0:00:50]}  Qxd4 {[%clk 0:00:18]} 25. cxd4 {[%clk 0:00:50]}  Nxf2 {[%clk 0:00:17]} 26. Kxf2 {[%clk 0:00:51]}  gxf4 {[%clk 0:00:16]} 27. Kf3 {[%clk 0:00:51]}  Kf7 {[%clk 0:00:10]} 28. Kxf4 {[%clk 0:00:51]}  Rg8 {[%clk 0:00:10]} 29. Bf3 {[%clk 0:00:51]}  Bd7 {[%clk 0:00:10]} 30. e5 {[%clk 0:00:46]}  fxe5+ {[%clk 0:00:09]} 31. dxe5 {[%clk 0:00:47]}  dxe5+ {[%clk 0:00:09]} 32. Rxe5 {[%clk 0:00:47]}  Rac8 {[%clk 0:00:09]} 33. Bd5+ {[%clk 0:00:46]}  Kf6 {[%clk 0:00:06]} 34. Bxg8 {[%clk 0:00:47]}  Rxg8 {[%clk 0:00:07]} 35. Re3 {[%clk 0:00:44]}  Rg4+ {[%clk 0:00:07]} 36. Kf3 {[%clk 0:00:44]}  Rg5 {[%clk 0:00:07]} 37. Rd1 {[%clk 0:00:42]}  Bg4+ {[%clk 0:00:06]} 38. Kf4 {[%clk 0:00:38]}  Bxd1 {[%clk 0:00:07]} 39. Rd3 {[%clk 0:00:34]}  Bg4 {[%clk 0:00:06]} 40. Rd6+ {[%clk 0:00:33]}  Kg7 {[%clk 0:00:07]} 41. b4 {[%clk 0:00:21]}  a6 {[%clk 0:00:06]} 42. a4 {[%clk 0:00:21]}  Bxh5 {[%clk 0:00:06]} 43. Rd7+ {[%clk 0:00:19]}  Bf7 {[%clk 0:00:06]} 44. Rxb7 {[%clk 0:00:19]}  a5 {[%clk 0:00:05]} 45. b5 {[%clk 0:00:19]}  Rh5 {[%clk 0:00:06]} 46. Kg3 {[%clk 0:00:18]}  Rc5 {[%clk 0:00:05]} 47. Ra7 {[%clk 0:00:17]}  Rc3+ {[%clk 0:00:05]} 48. Kf2 {[%clk 0:00:16]}  Rc2+ {[%clk 0:00:05]} 49. Kg3 {[%clk 0:00:15]}  Rc3+ {[%clk 0:00:05]} 50. Kh2 {[%clk 0:00:16]}  Ra3 {[%clk 0:00:06]} 51. Rxa5 {[%clk 0:00:16]}  Bb3 {[%clk 0:00:06]} 52. Ra7+ {[%clk 0:00:15]}  Kg6 {[%clk 0:00:06]} 53. a5 {[%clk 0:00:16]}  Ra2+ {[%clk 0:00:04]} 54. Kg3 {[%clk 0:00:16]}  Bc4 {[%clk 0:00:05]} 55. b6 {[%clk 0:00:16]}  Ra3+ {[%clk 0:00:05]} 56. Kf4 {[%clk 0:00:17]}  Bd5 {[%clk 0:00:05]} 57. a6 {[%clk 0:00:16]}  Bc6 {[%clk 0:00:05]} 58. Rc7 {[%clk 0:00:14]}  Bg2 {[%clk 0:00:04]} 59. a7 {[%clk 0:00:13]}  Ra4+ {[%clk 0:00:03]} 60. Kg3 {[%clk 0:00:13]}  Bh1 {[%clk 0:00:03]} 61. b7 {[%clk 0:00:10]}  Bxb7 {[%clk 0:00:03]} 62. Rxb7 {[%clk 0:00:11]}  h5 {[%clk 0:00:03]} 63. Rb6+ {[%clk 0:00:09]}  Kg5 {[%clk 0:00:04]} 64. Rb5+ {[%clk 0:00:10]}  Kg6 {[%clk 0:00:04]} 65. Rb7 {[%clk 0:00:09]}  Kg5 {[%clk 0:00:04]} 66. Rg7+ {[%clk 0:00:09]}  Kh6 {[%clk 0:00:04]} 67. Rb7 {[%clk 0:00:08]}  Kg5 {[%clk 0:00:04]} 68. Kh3 {[%clk 0:00:09]}  Ra3+ {[%clk 0:00:04]} 69. Kg2 {[%clk 0:00:09]}  h4 {[%clk 0:00:04]} 70. Rb5+ {[%clk 0:00:09]}  Kg4 {[%clk 0:00:04]} 71. Rb4+ {[%clk 0:00:09]}  Kg5 {[%clk 0:00:05]} 72. Rb7 {[%clk 0:00:10]}  Kg4 {[%clk 0:00:04]} 73. Rg7+ {[%clk 0:00:10]}  Kh5 {[%clk 0:00:05]} 74. Kh2 {[%clk 0:00:10]}  Ra2+ {[%clk 0:00:04]} 75. Kh3 {[%clk 0:00:10]}  Ra3+ {[%clk 0:00:05]} 76. Kg2 {[%clk 0:00:11]}  Ra2+ {[%clk 0:00:04]} 77. Kf3 {[%clk 0:00:11]}  Ra4 {[%clk 0:00:04]} 78. Rh7+ {[%clk 0:00:10]}  Kg5 {[%clk 0:00:04]} 79. Kg2 {[%clk 0:00:09]}  Kg4 {[%clk 0:00:03]} 80. Kf2 {[%clk 0:00:09]}  Kg5 {[%clk 0:00:02]} 81. Ke3 {[%clk 0:00:08]}  Kg4 {[%clk 0:00:02]} 82. Rg7+ {[%clk 0:00:07]}  Kh5 {[%clk 0:00:02]} 83. Kd3 {[%clk 0:00:06]}  Kh6 {[%clk 0:00:02]} 84. Rg4 {[%clk 0:00:05]}  Ra3+ {[%clk 0:00:01]} 85. Kc2 {[%clk 0:00:04]}  Rxa7 {[%clk 0:00:02]} 86. Rxh4+ {[%clk 0:00:04]}  Kg5 {[%clk 0:00:03]} 87. Rb4 {[%clk 0:00:05]}  Rc7+ {[%clk 0:00:03]} 88. Kb3 {[%clk 0:00:05]}  Rf7 {[%clk 0:00:03]} 89. Rb5+ {[%clk 0:00:05]}  Rf5 {[%clk 0:00:04]} 90. Kb4 {[%clk 0:00:06]}  Rxb5+ {[%clk 0:00:04]} 91. Kxb5 {[%clk 0:00:07]} 1/2-1/2


[Site "https://www.chess.com"]

[Event "Titled Tuesday Blitz June 6 Early 2023"]
[White "Sanchez, Robert"]
[Black "Todorovic, Bojan"]
[WhiteFideId "2034360"]
[BlackFideId "917087"]
[WhiteElo "1808"]
[BlackElo "2266"]
[Result "1-0"]
[Round "8"]
[TimeControl "180+2"]
[Date "2023.06.06"]
[WhiteClock "0:01:15"]
[BlackClock "0:00:38"]
[Board "149"]

1. e4 {[%clk 0:02:29]}  g6 {[%clk 0:02:58]} 2. d4 {[%clk 0:02:29]}  Bg7 {[%clk 0:02:58]} 3. Nc3 {[%clk 0:02:29]}  d6 {[%clk 0:02:58]} 4. Be3 {[%clk 0:02:29]}  a6 {[%clk 0:02:58]} 5. f3 {[%clk 0:02:29]}  Nc6 {[%clk 0:02:56]} 6. Qd2 {[%clk 0:02:29]}  e5 {[%clk 0:02:53]} 7. d5 {[%clk 0:02:29]}  Nce7 {[%clk 0:02:45]} 8. O-O-O {[%clk 0:02:29]}  f5 {[%clk 0:02:39]} 9. Kb1 {[%clk 0:02:28]}  Nf6 {[%clk 0:02:35]} 10. h3 {[%clk 0:02:27]}  O-O {[%clk 0:02:33]} 11. g4 {[%clk 0:02:27]}  f4 {[%clk 0:02:32]} 12. Bf2 {[%clk 0:02:27]}  Ne8 {[%clk 0:02:29]} 13. Bd3 {[%clk 0:02:26]}  c6 {[%clk 0:02:25]} 14. dxc6 {[%clk 0:02:21]}  bxc6 {[%clk 0:02:25]} 15. Bc4+ {[%clk 0:02:19]}  Kh8 {[%clk 0:02:24]} 16. h4 {[%clk 0:02:19]}  Rb8 {[%clk 0:02:12]} 17. Nh3 {[%clk 0:02:20]}  Rb4 {[%clk 0:02:10]} 18. Bb3 {[%clk 0:02:19]}  Rd4 {[%clk 0:01:54]} 19. Bxd4 {[%clk 0:02:16]}  exd4 {[%clk 0:01:54]} 20. Ne2 {[%clk 0:02:17]}  c5 {[%clk 0:01:41]} 21. Nexf4 {[%clk 0:02:12]}  Nc7 {[%clk 0:01:39]} 22. Ng5 {[%clk 0:02:06]}  d5 {[%clk 0:01:31]} 23. h5 {[%clk 0:02:02]}  c4 {[%clk 0:01:25]} 24. hxg6 {[%clk 0:01:56]}  h6 {[%clk 0:01:25]} 25. Ba4 {[%clk 0:01:48]}  Nb5 {[%clk 0:01:07]} 26. Nf7+ {[%clk 0:01:45]}  Rxf7 {[%clk 0:01:07]} 27. gxf7 {[%clk 0:01:45]}  Qb6 {[%clk 0:01:06]} 28. Bxb5 {[%clk 0:01:29]}  c3 {[%clk 0:00:44]} 29. Qxd4 {[%clk 0:01:24]}  Bxd4 {[%clk 0:00:42]} 30. f8=Q+ {[%clk 0:01:24]}  Ng8 {[%clk 0:00:41]} 31. Rxd4 {[%clk 0:01:15]}  Qxd4 {[%clk 0:00:38]} 32. Rxh6# {[%clk 0:01:15]} 1-0


[Site "https://www.chess.com"]

[Event "Titled Tuesday Blitz June 6 Early 2023"]
[White "Quirke, Jeffrey"]
[Black "White, John S."]
[WhiteFideId "2013029"]
[BlackFideId "2502348"]
[WhiteElo "2205"]
[BlackElo "2004"]
[Result "1-0"]
[Round "8"]
[TimeControl "180+2"]
[Date "2023.06.06"]
[WhiteClock "0:00:23"]
[BlackClock "0:01:02"]
[Board "152"]

1. e4 {[%clk 0:02:28]}  e6 {[%clk 0:03:00]} 2. d4 {[%clk 0:02:25]}  d5 {[%clk 0:03:01]} 3. e5 {[%clk 0:02:23]}  c5 {[%clk 0:03:01]} 4. c3 {[%clk 0:02:23]}  Nc6 {[%clk 0:03:02]} 5. Nf3 {[%clk 0:02:22]}  Qb6 {[%clk 0:03:02]} 6. Bd3 {[%clk 0:02:23]}  Bd7 {[%clk 0:03:02]} 7. O-O {[%clk 0:02:10]}  cxd4 {[%clk 0:03:02]} 8. Re1 {[%clk 0:02:05]}  dxc3 {[%clk 0:02:59]} 9. Nxc3 {[%clk 0:02:04]}  Bb4 {[%clk 0:02:56]} 10. Ng5 {[%clk 0:01:52]}  Bxc3 {[%clk 0:02:40]} 11. bxc3 {[%clk 0:01:47]}  f5 {[%clk 0:02:30]} 12. exf6 {[%clk 0:01:38]}  Nxf6 {[%clk 0:02:30]} 13. Nxe6 {[%clk 0:01:33]}  Bxe6 {[%clk 0:02:26]} 14. Rxe6+ {[%clk 0:01:32]}  Kf7 {[%clk 0:02:27]} 15. Rxf6+ {[%clk 0:01:21]}  gxf6 {[%clk 0:02:21]} 16. Qh5+ {[%clk 0:01:19]}  Ke7 {[%clk 0:02:15]} 17. Ba3+ {[%clk 0:01:18]}  Kd8 {[%clk 0:02:05]} 18. Qf7 {[%clk 0:01:04]}  Ne5 {[%clk 0:01:46]} 19. Qxd5+ {[%clk 0:00:56]}  Nd7 {[%clk 0:01:45]} 20. Bf5 {[%clk 0:00:45]}  Qc6 {[%clk 0:01:36]} 21. Rd1 {[%clk 0:00:44]}  Kc7 {[%clk 0:01:25]} 22. Qxd7+ {[%clk 0:00:42]}  Qxd7 {[%clk 0:01:25]} 23. Rxd7+ {[%clk 0:00:42]}  Kb6 {[%clk 0:01:26]} 24. Be4 {[%clk 0:00:31]}  Rae8 {[%clk 0:01:15]} 25. f3 {[%clk 0:00:26]}  Rc8 {[%clk 0:01:04]} 26. Rxb7+ {[%clk 0:00:26]}  Ka6 {[%clk 0:01:04]} 27. Rb3 {[%clk 0:00:24]}  Rc4 {[%clk 0:01:02]} 28. Bd3 {[%clk 0:00:23]} 1-0


[Site "https://www.chess.com"]

[Event "Titled Tuesday Blitz June 6 Early 2023"]
[White "ZeGood_ZeBad_ZeUgly"]
[Black "Porat, Tori"]
[BlackFideId "30982626"]
[WhiteElo "2198"]
[BlackElo "1752"]
[Result "1-0"]
[Round "8"]
[TimeControl "180+2"]
[Date "2023.06.06"]
[WhiteClock "0:00:07"]
[BlackClock "0:00:03"]
[Board "153"]

1. Nf3 {[%clk 0:02:55]}  d5 {[%clk 0:02:59]} 2. g3 {[%clk 0:02:54]}  c5 {[%clk 0:02:57]} 3. Bg2 {[%clk 0:02:55]}  Nc6 {[%clk 0:02:57]} 4. d4 {[%clk 0:02:54]}  cxd4 {[%clk 0:02:57]} 5. Nxd4 {[%clk 0:02:55]}  e5 {[%clk 0:02:54]} 6. Nxc6 {[%clk 0:02:55]}  bxc6 {[%clk 0:02:55]} 7. c4 {[%clk 0:02:56]}  Bb7 {[%clk 0:02:53]} 8. Nc3 {[%clk 0:02:54]}  Nf6 {[%clk 0:02:53]} 9. Bg5 {[%clk 0:02:53]}  d4 {[%clk 0:02:52]} 10. Ne4 {[%clk 0:02:51]}  Bb4+ {[%clk 0:02:51]} 11. Kf1 {[%clk 0:02:50]}  Be7 {[%clk 0:02:44]} 12. Bxf6 {[%clk 0:02:35]}  Bxf6 {[%clk 0:02:44]} 13. c5 {[%clk 0:02:34]}  O-O {[%clk 0:02:41]} 14. Nd6 {[%clk 0:02:32]}  Qc7 {[%clk 0:02:37]} 15. Qa4 {[%clk 0:02:26]}  Be7 {[%clk 0:02:10]} 16. Nxb7 {[%clk 0:01:58]}  Qxb7 {[%clk 0:02:09]} 17. b4 {[%clk 0:01:53]}  Rac8 {[%clk 0:02:06]} 18. h4 {[%clk 0:01:48]}  f5 {[%clk 0:02:04]} 19. Kg1 {[%clk 0:01:47]}  f4 {[%clk 0:02:03]} 20. Be4 {[%clk 0:01:47]}  Qd7 {[%clk 0:01:54]} 21. Kg2 {[%clk 0:01:41]}  Qg4 {[%clk 0:01:39]} 22. Bf3 {[%clk 0:01:29]}  Qf5 {[%clk 0:01:36]} 23. g4 {[%clk 0:01:27]}  Qg6 {[%clk 0:01:34]} 24. Qxa7 {[%clk 0:01:26]}  Bd8 {[%clk 0:01:16]} 25. h5 {[%clk 0:01:12]}  Qg5 {[%clk 0:01:14]} 26. Rag1 {[%clk 0:00:53]}  Re8 {[%clk 0:01:06]} 27. Be4 {[%clk 0:00:43]}  Bf6 {[%clk 0:00:53]} 28. f3 {[%clk 0:00:38]}  Be7 {[%clk 0:00:44]} 29. h6 {[%clk 0:00:36]}  g6 {[%clk 0:00:43]} 30. Qd7 {[%clk 0:00:34]}  Qf6 {[%clk 0:00:42]} 31. Kf2 {[%clk 0:00:24]}  Red8 {[%clk 0:00:39]} 32. Qb7 {[%clk 0:00:22]}  Qe6 {[%clk 0:00:20]} 33. a3 {[%clk 0:00:19]}  d3 {[%clk 0:00:20]} 34. Bxd3 {[%clk 0:00:16]}  Qd5 {[%clk 0:00:20]} 35. Qa6 {[%clk 0:00:15]}  Qd4+ {[%clk 0:00:20]} 36. Kg2 {[%clk 0:00:15]}  Kh8 {[%clk 0:00:18]} 37. Qc4 {[%clk 0:00:15]}  Qe3 {[%clk 0:00:18]} 38. Qf7 {[%clk 0:00:12]}  Bf8 {[%clk 0:00:08]} 39. Qf6+ {[%clk 0:00:10]}  Kg8 {[%clk 0:00:09]} 40. Bc4+ {[%clk 0:00:10]}  Rd5 {[%clk 0:00:09]} 41. Bxd5+ {[%clk 0:00:11]}  cxd5 {[%clk 0:00:09]} 42. Qe6+ {[%clk 0:00:11]}  Kh8 {[%clk 0:00:09]} 43. Qf6+ {[%clk 0:00:11]}  Kg8 {[%clk 0:00:09]} 44. Qe6+ {[%clk 0:00:11]}  Kh8 {[%clk 0:00:09]} 45. Rf1 {[%clk 0:00:11]}  Ra8 {[%clk 0:00:05]} 46. Qxd5 {[%clk 0:00:09]}  Qxe2+ {[%clk 0:00:05]} 47. Rf2 {[%clk 0:00:08]}  Qe3 {[%clk 0:00:05]} 48. Qxa8 {[%clk 0:00:08]}  Qd3 {[%clk 0:00:03]} 49. Qxf8# {[%clk 0:00:07]} 1-0


[Site "https://www.chess.com"]

[Event "Titled Tuesday Blitz June 6 Early 2023"]
[White "Winkels, Marcel"]
[Black "Mishra, Manoj"]
[WhiteFideId "1003887"]
[BlackFideId "5006007"]
[WhiteElo "1900"]
[BlackElo "1847"]
[Result "1-0"]
[Round "8"]
[TimeControl "180+2"]
[Date "2023.06.06"]
[WhiteClock "0:00:17"]
[BlackClock "0:00:02"]
[Board "154"]

1. e4 {[%clk 0:03:00]}  g6 {[%clk 0:02:54]} 2. d4 {[%clk 0:02:59]}  Bg7 {[%clk 0:02:54]} 3. Nc3 {[%clk 0:03:00]}  d6 {[%clk 0:02:54]} 4. Nf3 {[%clk 0:03:00]}  Nf6 {[%clk 0:02:54]} 5. Be2 {[%clk 0:03:01]}  O-O {[%clk 0:02:54]} 6. O-O {[%clk 0:03:01]}  Nbd7 {[%clk 0:02:54]} 7. e5 {[%clk 0:02:54]}  Ne8 {[%clk 0:02:43]} 8. Bf4 {[%clk 0:02:45]}  e6 {[%clk 0:02:41]} 9. Bg5 {[%clk 0:02:33]}  f6 {[%clk 0:02:37]} 10. exf6 {[%clk 0:02:32]}  Ndxf6 {[%clk 0:02:35]} 11. Bc4 {[%clk 0:02:28]}  d5 {[%clk 0:02:33]} 12. Bd3 {[%clk 0:02:26]}  h6 {[%clk 0:02:28]} 13. Bh4 {[%clk 0:02:25]}  g5 {[%clk 0:02:28]} 14. Bg3 {[%clk 0:02:25]}  Nd6 {[%clk 0:02:25]} 15. Ne5 {[%clk 0:02:22]}  h5 {[%clk 0:02:10]} 16. Bg6 {[%clk 0:02:19]}  h4 {[%clk 0:02:08]} 17. f4 {[%clk 0:01:38]}  hxg3 {[%clk 0:02:08]} 18. fxg5 {[%clk 0:01:38]}  gxh2+ {[%clk 0:02:00]} 19. Kh1 {[%clk 0:01:36]}  Nfe4 {[%clk 0:01:31]} 20. Nxe4 {[%clk 0:01:21]}  Nxe4 {[%clk 0:01:30]} 21. Bf7+ {[%clk 0:01:14]}  Rxf7 {[%clk 0:01:25]} 22. Nxf7 {[%clk 0:01:13]}  Ng3+ {[%clk 0:01:23]} 23. Kxh2 {[%clk 0:01:10]}  Nxf1+ {[%clk 0:01:22]} 24. Qxf1 {[%clk 0:01:07]}  Qf8 {[%clk 0:01:22]} 25. g6 {[%clk 0:01:03]}  Bd7 {[%clk 0:01:12]} 26. Qf3 {[%clk 0:01:01]}  Be8 {[%clk 0:01:05]} 27. Rf1 {[%clk 0:01:01]}  Bxf7 {[%clk 0:00:55]} 28. gxf7+ {[%clk 0:01:01]}  Kh8 {[%clk 0:00:55]} 29. Qh5+ {[%clk 0:00:59]}  Bh6 {[%clk 0:00:54]} 30. Rf6 {[%clk 0:00:58]}  Kh7 {[%clk 0:00:53]} 31. Qg6+ {[%clk 0:00:57]}  Kh8 {[%clk 0:00:50]} 32. Qxh6+ {[%clk 0:00:57]}  Qxh6+ {[%clk 0:00:50]} 33. Rxh6+ {[%clk 0:00:57]}  Kg7 {[%clk 0:00:51]} 34. Rxe6 {[%clk 0:00:56]}  Kxf7 {[%clk 0:00:50]} 35. Re5 {[%clk 0:00:56]}  c6 {[%clk 0:00:49]} 36. g4 {[%clk 0:00:55]}  Kf6 {[%clk 0:00:46]} 37. g5+ {[%clk 0:00:53]}  Kg6 {[%clk 0:00:46]} 38. Kg3 {[%clk 0:00:52]}  Rf8 {[%clk 0:00:44]} 39. Kg4 {[%clk 0:00:52]}  Rf2 {[%clk 0:00:44]} 40. Re6+ {[%clk 0:00:51]}  Kf7 {[%clk 0:00:43]} 41. Rh6 {[%clk 0:00:50]}  Rg2+ {[%clk 0:00:40]} 42. Kf5 {[%clk 0:00:49]}  Rf2+ {[%clk 0:00:38]} 43. Ke5 {[%clk 0:00:50]}  Rxc2 {[%clk 0:00:38]} 44. Rh7+ {[%clk 0:00:48]}  Kg6 {[%clk 0:00:38]} 45. Rxb7 {[%clk 0:00:48]}  Kxg5 {[%clk 0:00:37]} 46. a4 {[%clk 0:00:45]}  a5 {[%clk 0:00:32]} 47. Kd6 {[%clk 0:00:41]}  Kf4 {[%clk 0:00:30]} 48. Rb6 {[%clk 0:00:38]}  Ke4 {[%clk 0:00:26]} 49. b4 {[%clk 0:00:23]}  axb4 {[%clk 0:00:13]} 50. Rxb4 {[%clk 0:00:22]}  Kd3 {[%clk 0:00:08]} 51. a5 {[%clk 0:00:20]}  Kc3 {[%clk 0:00:07]} 52. Ra4 {[%clk 0:00:19]}  Kb3 {[%clk 0:00:07]} 53. Ra1 {[%clk 0:00:18]}  Rh2 {[%clk 0:00:04]} 54. a6 {[%clk 0:00:18]}  Kc4 {[%clk 0:00:03]} 55. Kxc6 {[%clk 0:00:17]}  Rh8 {[%clk 0:00:02]} 56. a7 {[%clk 0:00:17]} 1-0


[Site "https://www.chess.com"]

[Event "Titled Tuesday Blitz June 6 Early 2023"]
[White "Blackwhite017"]
[Black "KSho99"]
[WhiteElo "2081"]
[BlackElo "2193"]
[Result "1-0"]
[Round "8"]
[TimeControl "180+2"]
[Date "2023.06.06"]
[WhiteClock "0:00:14"]
[BlackClock "0:00:01"]
[Board "156"]

1. e4 {[%clk 0:03:00]}  c6 {[%clk 0:02:59]} 2. Nf3 {[%clk 0:03:00]}  d5 {[%clk 0:03:00]} 3. exd5 {[%clk 0:03:01]}  cxd5 {[%clk 0:03:01]} 4. Ne5 {[%clk 0:03:01]}  a6 {[%clk 0:02:59]} 5. d4 {[%clk 0:03:01]}  Nc6 {[%clk 0:02:59]} 6. c3 {[%clk 0:03:00]}  Nxe5 {[%clk 0:02:43]} 7. dxe5 {[%clk 0:02:59]}  e6 {[%clk 0:02:42]} 8. Bd3 {[%clk 0:02:59]}  Ne7 {[%clk 0:02:41]} 9. O-O {[%clk 0:02:51]}  Bd7 {[%clk 0:02:33]} 10. Qe2 {[%clk 0:02:46]}  Nc6 {[%clk 0:02:22]} 11. Nd2 {[%clk 0:02:30]}  Bc5 {[%clk 0:02:18]} 12. Nf3 {[%clk 0:02:29]}  O-O {[%clk 0:02:16]} 13. Bxh7+ {[%clk 0:02:17]}  Kxh7 {[%clk 0:02:14]} 14. Ng5+ {[%clk 0:02:17]}  Kg6 {[%clk 0:02:11]} 15. Qd3+ {[%clk 0:02:06]}  f5 {[%clk 0:02:09]} 16. exf6+ {[%clk 0:02:03]}  Kxf6 {[%clk 0:02:09]} 17. Nh7+ {[%clk 0:01:52]}  Kf7 {[%clk 0:02:06]} 18. Ng5+ {[%clk 0:01:22]}  Ke7 {[%clk 0:02:03]} 19. Nh7 {[%clk 0:01:13]}  Rf5 {[%clk 0:01:22]} 20. Bg5+ {[%clk 0:01:03]}  Rxg5 {[%clk 0:01:22]} 21. Nxg5 {[%clk 0:01:04]}  Ne5 {[%clk 0:00:49]} 22. Qg3 {[%clk 0:00:54]}  Bd6 {[%clk 0:00:33]} 23. Rae1 {[%clk 0:00:50]}  Qc7 {[%clk 0:00:15]} 24. f4 {[%clk 0:00:27]}  Nf7 {[%clk 0:00:05]} 25. Qh4 {[%clk 0:00:20]}  Rh8 {[%clk 0:00:02]} 26. Nh7+ {[%clk 0:00:14]}  Ke8 {[%clk 0:00:01]} 27. f5 {[%clk 0:00:14]} 1-0


[Site "https://www.chess.com"]

[Event "Titled Tuesday Blitz June 6 Early 2023"]
[White "Cramling Bellon, Anna"]
[Black "Joubert, Dantelle"]
[WhiteFideId "32009232"]
[BlackFideId "14310813"]
[WhiteElo "1976"]
[BlackElo "1507"]
[Result "1-0"]
[Round "8"]
[TimeControl "180+2"]
[Date "2023.06.06"]
[WhiteClock "0:00:34"]
[BlackClock "0:01:00"]
[Board "157"]

1. d4 {[%clk 0:02:56]}  d5 {[%clk 0:02:55]} 2. c4 {[%clk 0:02:55]}  e6 {[%clk 0:02:52]} 3. Nc3 {[%clk 0:02:49]}  Nf6 {[%clk 0:02:50]} 4. cxd5 {[%clk 0:02:49]}  Nxd5 {[%clk 0:02:46]} 5. e4 {[%clk 0:02:48]}  Nxc3 {[%clk 0:02:45]} 6. bxc3 {[%clk 0:02:48]}  c5 {[%clk 0:02:44]} 7. Nf3 {[%clk 0:02:45]}  cxd4 {[%clk 0:02:43]} 8. cxd4 {[%clk 0:02:43]}  Bb4+ {[%clk 0:02:41]} 9. Bd2 {[%clk 0:02:40]}  Bxd2+ {[%clk 0:02:41]} 10. Qxd2 {[%clk 0:02:40]}  O-O {[%clk 0:02:40]} 11. Bd3 {[%clk 0:02:35]}  Nd7 {[%clk 0:02:35]} 12. Rd1 {[%clk 0:02:32]}  b6 {[%clk 0:02:33]} 13. O-O {[%clk 0:02:28]}  Bb7 {[%clk 0:02:32]} 14. Qf4 {[%clk 0:02:26]}  Nf6 {[%clk 0:02:29]} 15. e5 {[%clk 0:02:23]}  Nd5 {[%clk 0:02:25]} 16. Qe4 {[%clk 0:02:19]}  g6 {[%clk 0:02:23]} 17. Qg4 {[%clk 0:02:12]}  Kg7 {[%clk 0:02:08]} 18. Ng5 {[%clk 0:02:04]}  Qe7 {[%clk 0:02:00]} 19. h4 {[%clk 0:02:01]}  h6 {[%clk 0:02:00]} 20. Ne4 {[%clk 0:01:48]}  h5 {[%clk 0:01:55]} 21. Qg3 {[%clk 0:01:45]}  Rac8 {[%clk 0:01:52]} 22. Nd6 {[%clk 0:01:21]}  Rc3 {[%clk 0:01:40]} 23. Rc1 {[%clk 0:00:54]}  Ba8 {[%clk 0:01:16]} 24. Rxc3 {[%clk 0:00:47]}  Nxc3 {[%clk 0:01:16]} 25. Rc1 {[%clk 0:00:42]}  Nd5 {[%clk 0:01:06]} 26. f4 {[%clk 0:00:35]}  Rd8 {[%clk 0:01:01]} 27. f5 {[%clk 0:00:34]}  exf5 {[%clk 0:01:00]} 28. Nxf5+ {[%clk 0:00:34]} 1-0


[Site "https://www.chess.com"]

[Event "Titled Tuesday Blitz June 6 Early 2023"]
[White "Nguyen, Ngoc Truong Son"]
[Black "Shevchenko, Kirill"]
[WhiteFideId "12401110"]
[BlackFideId "14129574"]
[WhiteElo "2556"]
[BlackElo "2603"]
[Result "0-1"]
[Round "9"]
[TimeControl "180+2"]
[Date "2023.06.06"]
[WhiteClock "0:00:03"]
[BlackClock "0:00:16"]
[Board "4"]

1. d4 {[%clk 0:03:00]}  Nf6 {[%clk 0:02:58]} 2. c4 {[%clk 0:03:00]}  g6 {[%clk 0:02:58]} 3. Nc3 {[%clk 0:02:59]}  Bg7 {[%clk 0:02:59]} 4. e4 {[%clk 0:02:58]}  d6 {[%clk 0:03:00]} 5. Nf3 {[%clk 0:02:58]}  O-O {[%clk 0:03:00]} 6. Be2 {[%clk 0:02:57]}  e5 {[%clk 0:03:00]} 7. d5 {[%clk 0:02:54]}  a5 {[%clk 0:02:58]} 8. Bg5 {[%clk 0:02:52]}  h6 {[%clk 0:02:57]} 9. Bh4 {[%clk 0:02:51]}  Na6 {[%clk 0:02:56]} 10. Nd2 {[%clk 0:02:48]}  Bd7 {[%clk 0:02:56]} 11. O-O {[%clk 0:02:38]}  Qe8 {[%clk 0:02:56]} 12. b3 {[%clk 0:02:16]}  Nh7 {[%clk 0:02:45]} 13. f3 {[%clk 0:02:10]}  h5 {[%clk 0:02:45]} 14. a3 {[%clk 0:02:03]}  Bh6 {[%clk 0:02:44]} 15. Rb1 {[%clk 0:01:51]}  Nc5 {[%clk 0:02:37]} 16. Qc2 {[%clk 0:01:33]}  Be3+ {[%clk 0:02:34]} 17. Bf2 {[%clk 0:01:27]}  Bxf2+ {[%clk 0:02:17]} 18. Rxf2 {[%clk 0:01:28]}  Qe7 {[%clk 0:02:18]} 19. b4 {[%clk 0:01:19]}  axb4 {[%clk 0:02:18]} 20. axb4 {[%clk 0:01:20]}  Na4 {[%clk 0:02:18]} 21. Nd1 {[%clk 0:01:17]}  h4 {[%clk 0:02:12]} 22. g3 {[%clk 0:01:06]}  f5 {[%clk 0:02:11]} 23. f4 {[%clk 0:00:56]}  hxg3 {[%clk 0:01:58]} 24. hxg3 {[%clk 0:00:55]}  fxe4 {[%clk 0:01:51]} 25. Nxe4 {[%clk 0:00:52]}  exf4 {[%clk 0:01:51]} 26. gxf4 {[%clk 0:00:51]}  Bf5 {[%clk 0:01:50]} 27. Bd3 {[%clk 0:00:49]}  Rae8 {[%clk 0:01:08]} 28. Ng3 {[%clk 0:00:32]}  Qe1+ {[%clk 0:00:48]} 29. Kg2 {[%clk 0:00:24]}  Bxd3 {[%clk 0:00:28]} 30. Qxd3 {[%clk 0:00:25]}  g5 {[%clk 0:00:28]} 31. f5 {[%clk 0:00:14]}  Nf6 {[%clk 0:00:28]} 32. Qd2 {[%clk 0:00:12]}  Qxd2 {[%clk 0:00:25]} 33. Rxd2 {[%clk 0:00:12]}  Nb6 {[%clk 0:00:25]} 34. Rc1 {[%clk 0:00:12]}  Re1 {[%clk 0:00:24]} 35. Rcc2 {[%clk 0:00:09]}  Ng4 {[%clk 0:00:23]} 36. Kf3 {[%clk 0:00:04]}  Ne5+ {[%clk 0:00:23]} 37. Kf2 {[%clk 0:00:04]}  Rxd1 {[%clk 0:00:17]} 38. Rxd1 {[%clk 0:00:05]}  Nbxc4 {[%clk 0:00:18]} 39. Rd4 {[%clk 0:00:04]}  b5 {[%clk 0:00:18]} 40. Rc3 {[%clk 0:00:03]}  Kg7 {[%clk 0:00:17]} 41. Kg2 {[%clk 0:00:03]}  Ra8 {[%clk 0:00:17]} 42. Ne4 {[%clk 0:00:04]}  Ra2+ {[%clk 0:00:18]} 43. Kg3 {[%clk 0:00:04]}  g4 {[%clk 0:00:18]} 44. Rc1 {[%clk 0:00:03]}  Ne3 {[%clk 0:00:18]} 45. Nf2 {[%clk 0:00:03]}  Nxf5+ {[%clk 0:00:18]} 46. Kg2 {[%clk 0:00:02]}  Nxd4 {[%clk 0:00:16]} 47. Rxc7+ {[%clk 0:00:03]}  Kg6 {[%clk 0:00:16]} 0-1


[Site "https://www.chess.com"]